[Event "Titled Tuesday Blitz August 08 Late 2023"]
[White "Bogumil, Tatiana"]
[Black "Thiel, Thomas"]
[WhiteFideId "4110579"]
[BlackFideId "4615964"]
[WhiteElo "2013"]
[BlackElo "2192"]
[Result "1-0"]
[Round "6"]
[TimeControl "180+1"]
[Date "2023.08.08"]
[WhiteClock "0:00:38"]
[BlackClock "0:00:38"]
[Board "164"]

1. Nf3 {[%clk 0:02:50]}  Nf6 {[%clk 0:02:58]} 2. c4 {[%clk 0:02:49]}  g6 {[%clk 0:02:56]} 3. b3 {[%clk 0:02:49]}  Bg7 {[%clk 0:02:56]} 4. Bb2 {[%clk 0:02:50]}  O-O {[%clk 0:02:55]} 5. g3 {[%clk 0:02:50]}  d6 {[%clk 0:02:54]} 6. d4 {[%clk 0:02:49]}  Nbd7 {[%clk 0:02:51]} 7. d5 {[%clk 0:02:44]}  c6 {[%clk 0:02:47]} 8. dxc6 {[%clk 0:02:43]}  bxc6 {[%clk 0:02:41]} 9. Bg2 {[%clk 0:02:44]}  Qc7 {[%clk 0:02:37]} 10. O-O {[%clk 0:02:44]}  e5 {[%clk 0:02:32]} 11. Nc3 {[%clk 0:02:43]}  Nc5 {[%clk 0:02:27]} 12. h3 {[%clk 0:02:33]}  a5 {[%clk 0:02:22]} 13. Rb1 {[%clk 0:02:26]}  Re8 {[%clk 0:02:20]} 14. Re1 {[%clk 0:02:16]}  e4 {[%clk 0:02:13]} 15. Nd4 {[%clk 0:02:15]}  e3 {[%clk 0:02:13]} 16. f4 {[%clk 0:02:09]}  Nfe4 {[%clk 0:02:06]} 17. Nxe4 {[%clk 0:02:08]}  Nxe4 {[%clk 0:02:06]} 18. Kh2 {[%clk 0:01:41]}  Bd7 {[%clk 0:02:03]} 19. Bxe4 {[%clk 0:01:32]}  Rxe4 {[%clk 0:02:04]} 20. Nf3 {[%clk 0:01:30]}  Bxb2 {[%clk 0:01:51]} 21. Rxb2 {[%clk 0:01:29]}  a4 {[%clk 0:01:49]} 22. Rc2 {[%clk 0:01:19]}  axb3 {[%clk 0:01:48]} 23. axb3 {[%clk 0:01:19]}  Rae8 {[%clk 0:01:42]} 24. Rc3 {[%clk 0:01:17]}  Bf5 {[%clk 0:01:38]} 25. Rd3 {[%clk 0:01:05]}  R4e6 {[%clk 0:01:33]} 26. Rc3 {[%clk 0:01:02]}  Qb6 {[%clk 0:01:27]} 27. Nd4 {[%clk 0:01:00]}  Rf6 {[%clk 0:01:09]} 28. Nxf5 {[%clk 0:01:00]}  gxf5 {[%clk 0:01:09]} 29. Rd3 {[%clk 0:00:56]}  Qc5 {[%clk 0:01:04]} 30. Qc2 {[%clk 0:00:52]}  Re4 {[%clk 0:01:00]} 31. Qc3 {[%clk 0:00:48]}  Rg6 {[%clk 0:00:58]} 32. Red1 {[%clk 0:00:47]}  Ree6 {[%clk 0:00:43]} 33. b4 {[%clk 0:00:44]}  Qb6 {[%clk 0:00:43]} 34. c5 {[%clk 0:00:43]}  dxc5 {[%clk 0:00:38]} 35. Rd8+ {[%clk 0:00:38]} 1-0


[Site "https://www.chess.com"]

[Event "Titled Tuesday Blitz August 08 Late 2023"]
[White "Terry, Renato"]
[Black "Iturrizaga Bonelli, Eduardo"]
[WhiteFideId "3803457"]
[BlackFideId "3901211"]
[WhiteElo "2929"]
[BlackElo "2973"]
[Result "0-1"]
[Round "7"]
[TimeControl "180+1"]
[Date "2023.08.08"]
[WhiteClock "0:00:00"]
[BlackClock "0:00:07"]
[Board "1"]

1. d4 {[%clk 0:03:00]}  Nf6 {[%clk 0:03:00]} 2. Nf3 {[%clk 0:03:01]}  g6 {[%clk 0:02:58]} 3. Bg5 {[%clk 0:03:02]}  Ne4 {[%clk 0:02:57]} 4. Bh4 {[%clk 0:03:01]}  Bg7 {[%clk 0:02:57]} 5. c3 {[%clk 0:03:02]}  O-O {[%clk 0:02:57]} 6. Nbd2 {[%clk 0:03:02]}  d5 {[%clk 0:02:56]} 7. e3 {[%clk 0:03:03]}  Nd7 {[%clk 0:02:54]} 8. Bd3 {[%clk 0:03:02]}  Nxd2 {[%clk 0:02:47]} 9. Qxd2 {[%clk 0:03:03]}  c5 {[%clk 0:02:47]} 10. O-O {[%clk 0:03:03]}  b6 {[%clk 0:02:47]} 11. a4 {[%clk 0:03:01]}  Bb7 {[%clk 0:02:47]} 12. a5 {[%clk 0:03:00]}  Re8 {[%clk 0:02:47]} 13. Bb5 {[%clk 0:02:59]}  Qc8 {[%clk 0:02:44]} 14. Rfd1 {[%clk 0:02:37]}  e6 {[%clk 0:02:41]} 15. h3 {[%clk 0:02:07]}  Bc6 {[%clk 0:02:40]} 16. Be2 {[%clk 0:02:03]}  b5 {[%clk 0:02:34]} 17. b4 {[%clk 0:01:54]}  c4 {[%clk 0:02:33]} 18. Bg3 {[%clk 0:01:51]}  Nf6 {[%clk 0:02:30]} 19. Qc2 {[%clk 0:01:47]}  Ne4 {[%clk 0:02:29]} 20. Be5 {[%clk 0:01:48]}  f6 {[%clk 0:02:29]} 21. Bh2 {[%clk 0:01:48]}  Qd7 {[%clk 0:02:27]} 22. Nd2 {[%clk 0:01:48]}  Ng5 {[%clk 0:02:27]} 23. Nf3 {[%clk 0:01:42]}  Nf7 {[%clk 0:02:27]} 24. Nd2 {[%clk 0:01:42]}  Ng5 {[%clk 0:02:11]} 25. Nf3 {[%clk 0:01:42]}  Nf7 {[%clk 0:01:51]} 26. Nd2 {[%clk 0:01:42]}  a6 {[%clk 0:01:52]} 27. e4 {[%clk 0:01:40]}  Qb7 {[%clk 0:01:51]} 28. exd5 {[%clk 0:01:23]}  Bxd5 {[%clk 0:01:52]} 29. Bf3 {[%clk 0:01:21]}  Ng5 {[%clk 0:01:38]} 30. Bxd5 {[%clk 0:01:18]}  exd5 {[%clk 0:01:39]} 31. Re1 {[%clk 0:01:16]}  Qd7 {[%clk 0:01:39]} 32. Bf4 {[%clk 0:01:15]}  Ne6 {[%clk 0:01:38]} 33. Bg3 {[%clk 0:01:12]}  Bh6 {[%clk 0:01:24]} 34. Nf3 {[%clk 0:01:11]}  Ng7 {[%clk 0:01:24]} 35. Nh2 {[%clk 0:01:01]}  Nf5 {[%clk 0:01:19]} 36. Ng4 {[%clk 0:01:01]}  Bg7 {[%clk 0:01:19]} 37. Bf4 {[%clk 0:01:00]}  h5 {[%clk 0:01:09]} 38. Ne3 {[%clk 0:00:56]}  Re4 {[%clk 0:01:09]} 39. Nxf5 {[%clk 0:00:50]}  Qxf5 {[%clk 0:01:10]} 40. Rxe4 {[%clk 0:00:50]}  dxe4 {[%clk 0:01:10]} 41. Bg3 {[%clk 0:00:39]}  Re8 {[%clk 0:01:09]} 42. Re1 {[%clk 0:00:38]}  Kf7 {[%clk 0:01:06]} 43. f3 {[%clk 0:00:27]}  Qg5 {[%clk 0:00:54]} 44. Kh2 {[%clk 0:00:20]}  h4 {[%clk 0:00:49]} 45. Bc7 {[%clk 0:00:17]}  e3 {[%clk 0:00:28]} 46. Kg1 {[%clk 0:00:11]}  Bh6 {[%clk 0:00:25]} 47. Re2 {[%clk 0:00:08]}  Qd5 {[%clk 0:00:18]} 48. Kf1 {[%clk 0:00:06]}  Bg5 {[%clk 0:00:16]} 49. Bh2 {[%clk 0:00:06]}  Bh6 {[%clk 0:00:14]} 50. Qb1 {[%clk 0:00:06]}  Qf5 {[%clk 0:00:11]} 51. Qxf5 {[%clk 0:00:06]}  gxf5 {[%clk 0:00:11]} 52. Ke1 {[%clk 0:00:04]}  f4 {[%clk 0:00:12]} 53. Kd1 {[%clk 0:00:04]}  Ke6 {[%clk 0:00:12]} 54. Kc2 {[%clk 0:00:05]}  Kd5 {[%clk 0:00:12]} 55. Kb2 {[%clk 0:00:05]}  Ke6 {[%clk 0:00:13]} 56. Kc2 {[%clk 0:00:06]}  Kf5 {[%clk 0:00:13]} 57. Kb2 {[%clk 0:00:06]}  Rd8 {[%clk 0:00:14]} 58. Kc2 {[%clk 0:00:07]}  Bf8 {[%clk 0:00:14]} 59. Kb2 {[%clk 0:00:07]}  Bd6 {[%clk 0:00:14]} 60. Kc2 {[%clk 0:00:07]}  Be7 {[%clk 0:00:09]} 61. Bg1 {[%clk 0:00:07]}  Bf8 {[%clk 0:00:07]} 62. Kb2 {[%clk 0:00:08]}  Bxb4 {[%clk 0:00:07]} 63. cxb4 {[%clk 0:00:08]}  Rxd4 {[%clk 0:00:08]} 64. Kc1 {[%clk 0:00:04]}  Rd3 {[%clk 0:00:08]} 65. Rb2 {[%clk 0:00:02]}  Rc3+ {[%clk 0:00:08]} 66. Rc2 {[%clk 0:00:02]}  Ra3 {[%clk 0:00:08]} 67. Rb2 {[%clk 0:00:02]}  Ke5 {[%clk 0:00:08]} 68. Kc2 {[%clk 0:00:02]}  Kd4 {[%clk 0:00:08]} 69. Bh2 {[%clk 0:00:02]}  Ke5 {[%clk 0:00:04]} 70. Kd1 {[%clk 0:00:01]}  Ra1+ {[%clk 0:00:04]} 71. Ke2 {[%clk 0:00:01]}  Rh1 {[%clk 0:00:05]} 72. Bxf4+ {[%clk 0:00:01]}  Kxf4 {[%clk 0:00:06]} 73. Rc2 {[%clk 0:00:01]}  Rg1 {[%clk 0:00:06]} 74. Rc3 {[%clk 0:00:01]}  Rxg2+ {[%clk 0:00:06]} 75. Ke1 {[%clk 0:00:00]}  Kxf3 {[%clk 0:00:07]} 0-1


[Site "https://www.chess.com"]

[Event "Titled Tuesday Blitz August 08 Late 2023"]
[White "Zemlyanskii, Ivan"]
[Black "Naroditsky, Daniel"]
[WhiteFideId "24249971"]
[BlackFideId "2026961"]
[WhiteElo "2888"]
[BlackElo "3196"]
[Result "0-1"]
[Round "7"]
[TimeControl "180+1"]
[Date "2023.08.08"]
[WhiteClock "0:00:00"]
[BlackClock "0:00:06"]
[Board "5"]

1. d4 {[%clk 0:02:57]}  Nf6 {[%clk 0:03:00]} 2. c4 {[%clk 0:02:56]}  g6 {[%clk 0:03:00]} 3. Nc3 {[%clk 0:02:50]}  Bg7 {[%clk 0:03:00]} 4. e4 {[%clk 0:02:50]}  d6 {[%clk 0:03:01]} 5. Nf3 {[%clk 0:02:50]}  O-O {[%clk 0:03:01]} 6. Be2 {[%clk 0:02:51]}  h6 {[%clk 0:02:57]} 7. O-O {[%clk 0:02:41]}  e5 {[%clk 0:02:58]} 8. h3 {[%clk 0:02:00]}  exd4 {[%clk 0:02:54]} 9. Nxd4 {[%clk 0:02:00]}  Re8 {[%clk 0:02:55]} 10. Bf3 {[%clk 0:01:53]}  Nbd7 {[%clk 0:02:53]} 11. Be3 {[%clk 0:01:50]}  c6 {[%clk 0:02:37]} 12. Rc1 {[%clk 0:01:39]}  a5 {[%clk 0:02:34]} 13. Re1 {[%clk 0:01:34]}  Nc5 {[%clk 0:02:33]} 14. Bf4 {[%clk 0:01:29]}  Nh7 {[%clk 0:02:24]} 15. Nde2 {[%clk 0:01:09]}  Ng5 {[%clk 0:02:19]} 16. Ng3 {[%clk 0:00:57]}  Qf6 {[%clk 0:01:48]} 17. Bxd6 {[%clk 0:00:47]}  Nxf3+ {[%clk 0:01:47]} 18. gxf3 {[%clk 0:00:47]}  Ne6 {[%clk 0:01:23]} 19. e5 {[%clk 0:00:47]}  Qh4 {[%clk 0:01:23]} 20. Re4 {[%clk 0:00:38]}  Qxh3 {[%clk 0:01:16]} 21. Qf1 {[%clk 0:00:36]}  Ng5 {[%clk 0:00:56]} 22. Qxh3 {[%clk 0:00:34]}  Bxh3 {[%clk 0:00:57]} 23. Re3 {[%clk 0:00:34]}  Bxe5 {[%clk 0:00:52]} 24. Bxe5 {[%clk 0:00:28]}  Rxe5 {[%clk 0:00:53]} 25. f4 {[%clk 0:00:28]}  Rxe3 {[%clk 0:00:53]} 26. fxe3 {[%clk 0:00:29]}  Ne6 {[%clk 0:00:51]} 27. Nce4 {[%clk 0:00:29]}  h5 {[%clk 0:00:44]} 28. Nf2 {[%clk 0:00:27]}  Bg4 {[%clk 0:00:45]} 29. Nge4 {[%clk 0:00:24]}  Kg7 {[%clk 0:00:44]} 30. Nxg4 {[%clk 0:00:23]}  hxg4 {[%clk 0:00:45]} 31. Rd1 {[%clk 0:00:23]}  Rd8 {[%clk 0:00:37]} 32. Rxd8 {[%clk 0:00:24]}  Nxd8 {[%clk 0:00:38]} 33. Nd6 {[%clk 0:00:24]}  f5 {[%clk 0:00:37]} 34. Kf2 {[%clk 0:00:21]}  Kf6 {[%clk 0:00:37]} 35. e4 {[%clk 0:00:22]}  Ke6 {[%clk 0:00:31]} 36. c5 {[%clk 0:00:22]}  b6 {[%clk 0:00:15]} 37. Nc4 {[%clk 0:00:19]}  bxc5 {[%clk 0:00:16]} 38. exf5+ {[%clk 0:00:19]}  gxf5 {[%clk 0:00:14]} 39. Nxa5 {[%clk 0:00:19]}  Kd5 {[%clk 0:00:15]} 40. b3 {[%clk 0:00:17]}  Ne6 {[%clk 0:00:15]} 41. Ke3 {[%clk 0:00:15]}  Nd4 {[%clk 0:00:16]} 42. Nc4 {[%clk 0:00:16]}  Nc2+ {[%clk 0:00:16]} 43. Kf2 {[%clk 0:00:16]}  Ke4 {[%clk 0:00:12]} 44. Kg3 {[%clk 0:00:15]}  Nd4 {[%clk 0:00:13]} 45. Nd6+ {[%clk 0:00:15]}  Kd5 {[%clk 0:00:13]} 46. Nc4 {[%clk 0:00:11]}  Ne2+ {[%clk 0:00:14]} 47. Kh4 {[%clk 0:00:12]}  Nxf4 {[%clk 0:00:14]} 48. Kg5 {[%clk 0:00:13]}  Ke4 {[%clk 0:00:05]} 49. Nd6+ {[%clk 0:00:13]}  Ke5 {[%clk 0:00:05]} 50. Nxf5 {[%clk 0:00:08]}  Nd3 {[%clk 0:00:04]} 51. Kxg4 {[%clk 0:00:07]}  Nc1 {[%clk 0:00:04]} 52. Ne7 {[%clk 0:00:04]}  Kd6 {[%clk 0:00:04]} 53. Nf5+ {[%clk 0:00:05]}  Kd5 {[%clk 0:00:02]} 54. Ne7+ {[%clk 0:00:05]}  Kd6 {[%clk 0:00:03]} 55. Nf5+ {[%clk 0:00:05]}  Kc7 {[%clk 0:00:03]} 56. Kf3 {[%clk 0:00:04]}  Nxa2 {[%clk 0:00:04]} 57. Ke3 {[%clk 0:00:03]}  Kb6 {[%clk 0:00:04]} 58. Kd3 {[%clk 0:00:04]}  Nb4+ {[%clk 0:00:04]} 59. Kc4 {[%clk 0:00:04]}  Nc2 {[%clk 0:00:05]} 60. Ne7 {[%clk 0:00:05]}  Ne3+ {[%clk 0:00:05]} 61. Kc3 {[%clk 0:00:05]}  Nd5+ {[%clk 0:00:06]} 62. Nxd5+ {[%clk 0:00:04]}  cxd5 {[%clk 0:00:07]} 63. b4 {[%clk 0:00:03]}  c4 {[%clk 0:00:06]} 64. Kd4 {[%clk 0:00:02]}  Kc6 {[%clk 0:00:04]} 65. Kc3 {[%clk 0:00:02]}  Kb5 {[%clk 0:00:05]} 66. Kd4 {[%clk 0:00:00]}  Kxb4 {[%clk 0:00:06]} 0-1


[Site "https://www.chess.com"]

[Event "Titled Tuesday Blitz August 08 Late 2023"]
[White "Asadli, Vugar"]
[Black "Aronian, Levon"]
[WhiteFideId "13405764"]
[BlackFideId "13300474"]
[WhiteElo "2842"]
[BlackElo "3043"]
[Result "0-1"]
[Round "7"]
[TimeControl "180+1"]
[Date "2023.08.08"]
[WhiteClock "0:00:14"]
[BlackClock "0:00:07"]
[Board "6"]

1. e4 {[%clk 0:03:00]}  c5 {[%clk 0:03:00]} 2. Nf3 {[%clk 0:03:01]}  e6 {[%clk 0:03:00]} 3. d4 {[%clk 0:03:00]}  cxd4 {[%clk 0:03:01]} 4. Nxd4 {[%clk 0:03:01]}  Nc6 {[%clk 0:03:01]} 5. Nc3 {[%clk 0:03:02]}  Qc7 {[%clk 0:03:02]} 6. Be3 {[%clk 0:02:59]}  a6 {[%clk 0:03:01]} 7. Qd2 {[%clk 0:02:59]}  Nf6 {[%clk 0:03:00]} 8. O-O-O {[%clk 0:02:59]}  Be7 {[%clk 0:02:58]} 9. f3 {[%clk 0:02:57]}  b5 {[%clk 0:02:56]} 10. g4 {[%clk 0:02:55]}  O-O {[%clk 0:02:55]} 11. Kb1 {[%clk 0:02:44]}  Bb7 {[%clk 0:02:46]} 12. h4 {[%clk 0:02:42]}  Rfd8 {[%clk 0:02:27]} 13. h5 {[%clk 0:02:40]}  d5 {[%clk 0:02:18]} 14. e5 {[%clk 0:02:33]}  Nxe5 {[%clk 0:02:14]} 15. g5 {[%clk 0:02:32]}  Nxf3 {[%clk 0:01:59]} 16. Qg2 {[%clk 0:02:23]}  Nxd4 {[%clk 0:01:31]} 17. gxf6 {[%clk 0:02:14]}  Nf5 {[%clk 0:01:31]} 18. fxe7 {[%clk 0:02:10]}  Nxe3 {[%clk 0:01:31]} 19. exd8=Q+ {[%clk 0:02:06]}  Rxd8 {[%clk 0:01:32]} 20. Qg1 {[%clk 0:01:58]}  d4 {[%clk 0:01:08]} 21. h6 {[%clk 0:01:58]}  g6 {[%clk 0:00:51]} 22. Rh2 {[%clk 0:01:28]}  b4 {[%clk 0:00:41]} 23. Rxd4 {[%clk 0:00:30]}  Rxd4 {[%clk 0:00:37]} 24. Qxe3 {[%clk 0:00:30]}  Rd8 {[%clk 0:00:35]} 25. Rd2 {[%clk 0:00:21]}  Rxd2 {[%clk 0:00:34]} 26. Qxd2 {[%clk 0:00:20]}  bxc3 {[%clk 0:00:35]} 27. bxc3 {[%clk 0:00:21]}  Kf8 {[%clk 0:00:30]} 28. Qd4 {[%clk 0:00:20]}  e5 {[%clk 0:00:29]} 29. Qb4+ {[%clk 0:00:20]}  Ke8 {[%clk 0:00:17]} 30. Bc4 {[%clk 0:00:20]}  e4 {[%clk 0:00:13]} 31. Bb3 {[%clk 0:00:20]}  Bc6 {[%clk 0:00:13]} 32. Qc4 {[%clk 0:00:19]}  Kd8 {[%clk 0:00:04]} 33. Qd4+ {[%clk 0:00:19]}  Kc8 {[%clk 0:00:02]} 34. Qh8+ {[%clk 0:00:17]}  Kb7 {[%clk 0:00:03]} 35. Qd4 {[%clk 0:00:15]}  Qd7 {[%clk 0:00:02]} 36. Qe5 {[%clk 0:00:14]}  f5 {[%clk 0:00:02]} 37. Bg8 {[%clk 0:00:14]}  Qc7 {[%clk 0:00:02]} 38. Qd4 {[%clk 0:00:13]}  f4 {[%clk 0:00:02]} 39. Bd5 {[%clk 0:00:12]}  Bxd5 {[%clk 0:00:02]} 40. Qxd5+ {[%clk 0:00:13]}  Qc6 {[%clk 0:00:02]} 41. Qf7+ {[%clk 0:00:13]}  Qc7 {[%clk 0:00:02]} 42. Qd5+ {[%clk 0:00:14]}  Ka7 {[%clk 0:00:03]} 43. Qxe4 {[%clk 0:00:14]}  Qb7+ {[%clk 0:00:04]} 44. Qxb7+ {[%clk 0:00:14]}  Kxb7 {[%clk 0:00:04]} 45. Kc1 {[%clk 0:00:14]}  Kc6 {[%clk 0:00:05]} 46. Kd2 {[%clk 0:00:14]}  g5 {[%clk 0:00:05]} 47. Kd3 {[%clk 0:00:14]}  g4 {[%clk 0:00:06]} 48. Ke4 {[%clk 0:00:15]}  g3 {[%clk 0:00:06]} 49. Kf3 {[%clk 0:00:14]}  Kc5 {[%clk 0:00:07]} 0-1


[Site "https://www.chess.com"]

[Event "Titled Tuesday Blitz August 08 Late 2023"]
[White "Andreikin, Dmitry"]
[Black "Rustemov, Alexander"]
[WhiteFideId "4158814"]
[BlackFideId "4119002"]
[WhiteElo "3017"]
[BlackElo "2855"]
[Result "1-0"]
[Round "7"]
[TimeControl "180+1"]
[Date "2023.08.08"]
[WhiteClock "0:00:32"]
[BlackClock "0:00:08"]
[Board "7"]

1. d4 {[%clk 0:03:00]}  d5 {[%clk 0:02:59]} 2. c4 {[%clk 0:03:00]}  e6 {[%clk 0:02:59]} 3. Nf3 {[%clk 0:03:00]}  Nf6 {[%clk 0:03:00]} 4. Bg5 {[%clk 0:03:00]}  Be7 {[%clk 0:02:59]} 5. e3 {[%clk 0:02:59]}  h6 {[%clk 0:02:58]} 6. Bxf6 {[%clk 0:02:57]}  Bxf6 {[%clk 0:02:58]} 7. Qc2 {[%clk 0:02:58]}  O-O {[%clk 0:02:53]} 8. h4 {[%clk 0:02:58]}  g6 {[%clk 0:02:51]} 9. Nc3 {[%clk 0:02:54]}  Bg7 {[%clk 0:02:44]} 10. O-O-O {[%clk 0:02:53]}  c6 {[%clk 0:02:43]} 11. Ne5 {[%clk 0:02:49]}  Nd7 {[%clk 0:02:40]} 12. f4 {[%clk 0:02:49]}  Nxe5 {[%clk 0:02:33]} 13. fxe5 {[%clk 0:02:43]}  Bd7 {[%clk 0:02:21]} 14. Kb1 {[%clk 0:02:40]}  dxc4 {[%clk 0:01:46]} 15. Bxc4 {[%clk 0:02:39]}  c5 {[%clk 0:01:47]} 16. d5 {[%clk 0:02:28]}  exd5 {[%clk 0:01:38]} 17. Nxd5 {[%clk 0:02:07]}  Bxe5 {[%clk 0:01:33]} 18. Nf4 {[%clk 0:02:00]}  Bxf4 {[%clk 0:01:24]} 19. Qxg6+ {[%clk 0:01:41]}  Kh8 {[%clk 0:01:24]} 20. Qh5 {[%clk 0:01:23]}  Bxe3 {[%clk 0:00:59]} 21. Qe5+ {[%clk 0:01:18]}  f6 {[%clk 0:00:56]} 22. Qxe3 {[%clk 0:01:16]}  Bf5+ {[%clk 0:00:55]} 23. Ka1 {[%clk 0:01:13]}  Qc7 {[%clk 0:00:55]} 24. Qxh6+ {[%clk 0:01:01]}  Qh7 {[%clk 0:00:55]} 25. Qf4 {[%clk 0:01:00]}  Be4 {[%clk 0:00:50]} 26. Rhe1 {[%clk 0:00:56]}  f5 {[%clk 0:00:49]} 27. Rd6 {[%clk 0:00:51]}  Qe7 {[%clk 0:00:31]} 28. Qh6+ {[%clk 0:00:49]}  Qh7 {[%clk 0:00:31]} 29. Qg5 {[%clk 0:00:41]}  Rg8 {[%clk 0:00:30]} 30. Bxg8 {[%clk 0:00:35]}  Rxg8 {[%clk 0:00:31]} 31. Qf4 {[%clk 0:00:35]}  Rg4 {[%clk 0:00:28]} 32. Qe5+ {[%clk 0:00:31]}  Qg7 {[%clk 0:00:23]} 33. Rh6+ {[%clk 0:00:31]}  Kg8 {[%clk 0:00:24]} 34. Qe8+ {[%clk 0:00:32]}  Qf8 {[%clk 0:00:08]} 35. Rh8+ {[%clk 0:00:32]} 1-0


[Site "https://www.chess.com"]

[Event "Titled Tuesday Blitz August 08 Late 2023"]
[White "Talibov, Shiroghlan"]
[Black "Mamedov, Rauf"]
[WhiteFideId "13429078"]
[BlackFideId "13401653"]
[WhiteElo "2835"]
[BlackElo "3010"]
[Result "0-1"]
[Round "7"]
[TimeControl "180+1"]
[Date "2023.08.08"]
[WhiteClock "0:00:17"]
[BlackClock "0:02:45"]
[Board "8"]

1. e4 {[%clk 0:03:00]}  c5 {[%clk 0:02:59]} 2. Nf3 {[%clk 0:02:53]}  d6 {[%clk 0:03:00]} 3. d4 {[%clk 0:02:47]}  cxd4 {[%clk 0:02:59]} 4. Nxd4 {[%clk 0:02:48]}  Nf6 {[%clk 0:03:00]} 5. Nc3 {[%clk 0:02:48]}  g6 {[%clk 0:03:01]} 6. Be3 {[%clk 0:02:48]}  Bg7 {[%clk 0:03:01]} 7. f3 {[%clk 0:02:49]}  Nc6 {[%clk 0:03:01]} 8. Qd2 {[%clk 0:02:49]}  O-O {[%clk 0:03:02]} 9. O-O-O {[%clk 0:02:49]}  d5 {[%clk 0:03:02]} 10. Kb1 {[%clk 0:02:48]}  Nxd4 {[%clk 0:03:02]} 11. e5 {[%clk 0:02:48]}  Nf5 {[%clk 0:03:02]} 12. exf6 {[%clk 0:02:48]}  Bxf6 {[%clk 0:03:03]} 13. Nxd5 {[%clk 0:02:41]}  Qxd5 {[%clk 0:03:03]} 14. Qxd5 {[%clk 0:02:39]}  Nxe3 {[%clk 0:03:04]} 15. Qd2 {[%clk 0:02:38]}  Nxd1 {[%clk 0:03:05]} 16. Qxd1 {[%clk 0:02:38]}  Be6 {[%clk 0:03:05]} 17. Bd3 {[%clk 0:02:33]}  Rfd8 {[%clk 0:03:05]} 18. Qe2 {[%clk 0:02:33]}  Rd6 {[%clk 0:03:05]} 19. Bc4 {[%clk 0:02:26]}  Bxc4 {[%clk 0:03:04]} 20. Qxc4 {[%clk 0:02:26]}  Rad8 {[%clk 0:03:04]} 21. a3 {[%clk 0:02:23]}  Rb6 {[%clk 0:03:04]} 22. b3 {[%clk 0:02:17]}  Rc6 {[%clk 0:03:02]} 23. Qe2 {[%clk 0:02:11]}  Rcd6 {[%clk 0:03:02]} 24. b4 {[%clk 0:01:51]}  a6 {[%clk 0:02:52]} 25. g3 {[%clk 0:01:42]}  b5 {[%clk 0:02:52]} 26. Rc1 {[%clk 0:01:33]}  Rd2 {[%clk 0:02:52]} 27. Qe4 {[%clk 0:01:32]}  R8d6 {[%clk 0:02:52]} 28. h4 {[%clk 0:01:30]}  Kg7 {[%clk 0:02:48]} 29. f4 {[%clk 0:01:17]}  h5 {[%clk 0:02:48]} 30. Ka2 {[%clk 0:01:12]}  e6 {[%clk 0:02:47]} 31. Rg1 {[%clk 0:01:05]}  R6d4 {[%clk 0:02:46]} 32. Qe3 {[%clk 0:00:45]}  Rxc2+ {[%clk 0:02:46]} 33. Kb1 {[%clk 0:00:43]}  Rdd2 {[%clk 0:02:45]} 34. g4 {[%clk 0:00:33]}  Ra2 {[%clk 0:02:45]} 35. Kc1 {[%clk 0:00:17]}  Rh2 {[%clk 0:02:45]} 0-1


[Site "https://www.chess.com"]

[Event "Titled Tuesday Blitz August 08 Late 2023"]
[White "Xiong, Jeffery"]
[Black "Nazari, Arad"]
[WhiteFideId "2047640"]
[BlackFideId "12577324"]
[WhiteElo "2974"]
[BlackElo "2768"]
[Result "1-0"]
[Round "7"]
[TimeControl "180+1"]
[Date "2023.08.08"]
[WhiteClock "0:00:35"]
[BlackClock "0:00:17"]
[Board "10"]

1. d4 {[%clk 0:03:00]}  Nf6 {[%clk 0:02:53]} 2. Nf3 {[%clk 0:03:01]}  g6 {[%clk 0:02:54]} 3. Nbd2 {[%clk 0:03:00]}  d5 {[%clk 0:02:51]} 4. b3 {[%clk 0:03:00]}  Bg7 {[%clk 0:02:52]} 5. Bb2 {[%clk 0:03:00]}  O-O {[%clk 0:02:53]} 6. e3 {[%clk 0:03:01]}  c5 {[%clk 0:02:52]} 7. dxc5 {[%clk 0:03:00]}  Qa5 {[%clk 0:02:48]} 8. a3 {[%clk 0:03:00]}  Qxc5 {[%clk 0:02:48]} 9. b4 {[%clk 0:02:59]}  Qc7 {[%clk 0:02:48]} 10. c4 {[%clk 0:03:00]}  dxc4 {[%clk 0:02:45]} 11. Bxc4 {[%clk 0:03:01]}  a6 {[%clk 0:02:41]} 12. Rc1 {[%clk 0:03:00]}  Nc6 {[%clk 0:02:39]} 13. O-O {[%clk 0:02:59]}  b5 {[%clk 0:02:34]} 14. Bd3 {[%clk 0:02:44]}  Bb7 {[%clk 0:02:29]} 15. Nb3 {[%clk 0:02:45]}  Rfd8 {[%clk 0:02:16]} 16. Qe2 {[%clk 0:02:45]}  Qb6 {[%clk 0:02:05]} 17. Nc5 {[%clk 0:02:45]}  Rac8 {[%clk 0:02:00]} 18. Ne5 {[%clk 0:02:27]}  Nxe5 {[%clk 0:01:46]} 19. Bxe5 {[%clk 0:02:28]}  Ba8 {[%clk 0:01:41]} 20. Rfd1 {[%clk 0:02:19]}  Rd5 {[%clk 0:01:24]} 21. Bxf6 {[%clk 0:01:56]}  Bxf6 {[%clk 0:01:19]} 22. Nd7 {[%clk 0:01:56]}  Qb7 {[%clk 0:01:01]} 23. Rxc8+ {[%clk 0:01:55]}  Qxc8 {[%clk 0:00:58]} 24. Nb6 {[%clk 0:01:55]}  Qc3 {[%clk 0:00:55]} 25. Nxa8 {[%clk 0:01:01]}  Qc6 {[%clk 0:00:37]} 26. Qf3 {[%clk 0:00:35]}  Qxa8 {[%clk 0:00:27]} 27. Bf1 {[%clk 0:00:35]}  e6 {[%clk 0:00:17]} 28. Rxd5 {[%clk 0:00:35]} 1-0


[Site "https://www.chess.com"]